Cogmind - Beta 15 @@@ ROGUE MODE // 2025.05.11 @ 10:34:27 Player: LightKnight Result: Destroyed by as-69226 with Assembled Heavy Rifle Performance ------------- Evolutions (4) 2000 Regions Visited (17) 3400 Robots Destroyed (73) 365 Value Destroyed (2627) 2627 Prototype IDs (50) 1000 Alien Tech Used (1) 200 Bonus (1111) 1111 TOTAL SCORE: 10703 Bonus ------- Follower Combat Kills 178 Aligned with FarCom 300 Met Data Miner 300 Met Imprinter 300 Was Imprinted 300 Triggered Deep Caves Wall 500 Friendly Fire -767 Cogmind --------- Core Integrity 0/850 Matter 172/300 Energy 430/700 System Corruption 0% Temperature Cool (0) Movement Core (150) Ox2 Location -6/Deep Caves Parts ------- > --- POWER (1) -------- (None) > --- PROPULSION (5) --- (None) > --- UTILITY (6) ------ Zionite Biocell Enhanced Optical Array Advanced Target Analyzer AS-neutralizer No. 17b > --- WEAPON (4) ------- (None) > --- INVENTORY (5) ---- Zionite Heavy Carapace Layered Light Armor Plating Zionite Phaser-S Peak State ------------ > --- POWER ------------ Light Angular Momentum Engine > --- PROPULSION ------- Heavy Treads Zionite Composite Leg I Zionite Composite Leg I > --- UTILITY ---------- Large Storage Unit Enhanced Optical Array Advanced Target Analyzer Zionite Weapon Casing Zionite Heavy Carapace > --- WEAPON ----------- Zionite Phaser-S Heavy Shock Bomb Launcher Master Tearclaws > --- INVENTORY -------- Angular Momentum Engine Improved Cooling System Zionite Biocell Matter Compressor Advanced Sensor Array Zionite Weapon Casing Zionite Heavy Carapace Layered Light Armor Plating AS-neutralizer No. 17b Zionite Laser-S Zionite Laser-S Heavy Plasma Cannon Heavy Plasma Cannon Precision Rocket Launcher [Rating: 95] Favorites ----------- Power Angular Momentum Engine Engine Angular Momentum Engine Reactor Antimatter Reactor Propulsion Heavy Treads Treads Heavy Treads Leg Zionite Composite Leg I Utility Large Storage Unit Device Experimental Heat Sink Storage Large Storage Unit Processor Enhanced Optical Array Protection Zionite Heavy Carapace Weapon Heavy Plasma Cannon Energy Gun Zionite Laser-S Energy Cannon Heavy Plasma Cannon Ballistic Gun Heavy Assault Rifle Ballistic Cannon Heavy Flak Cannon Launcher Precision Rocket Launcher Slashing Weapon Master Tearclaws Build | -11 -10 -10 -10 -9 -8 -7 -7 -7 -7 -7 -7 -6 -6 -6 -6 -6 -6 ------- Run | Yrd Mat Min Exi Min Mat Fac Was Fac Low Low Dat Pro Fac Low Low Zio Dee Slots Evolved 8 | . . . . . 4 2 . . . . . . 2 . . . . Power . | . . . . . . . . . . . . . . . . . . Propulsion 2 | . . . . . 1 . . . . . . . 1 . . . . Utility 4 | . . . . . 1 2 . . . . . . 1 . . . . Weapon 2 | . . . . . 2 . . . . . . . . . . . . Parts Attached 89 | 1 1 8 11 . 6 10 6 2 . 2 . 7 11 3 2 6 13 Power 8 | . . 1 2 . . 1 1 . . . . 1 . 1 . . 1 Engine 6 | . . 1 2 . . 1 . . . . . . . 1 . . 1 Core . | . . . . . . . . . . . . . . . . . . Reactor 2 | . . . . . . . 1 . . . . 1 . . . . . Propulsion 15 | . . 2 3 . 2 1 1 1 . . . . 2 . . 1 2 Treads 11 | . . 2 1 . 2 1 1 1 . . . . 2 . . 1 . Leg 4 | . . . 2 . . . . . . . . . . . . . 2 Wheel . | . . . . . . . . . . . . . . . . . . Hover . | . . . . . . . . . . . . . . . . . . Flight . | . . . . . . . . . . . . . . . . . . Utility 34 | . 1 2 5 . 2 2 3 1 . 1 . . 5 2 . 4 6 Device 18 | . . 2 4 . 1 1 2 . . . . . 3 2 . 3 . Storage 4 | . 1 . 1 . . . . . . . . . . . . . 2 Processor 7 | . . . . . 1 1 1 . . 1 . . 2 . . 1 . Hackware . | . . . . . . . . . . . . . . . . . . Protection 5 | . . . . . . . . 1 . . . . . . . . 4 Artifact . | . . . . . . . . . . . . . . . . . . Weapon 32 | 1 . 3 1 . 2 6 1 . . 1 . 6 4 . 2 1 4 Energy Gun 10 | 1 . 1 . . . 3 . . . . . . . . 1 1 3 Energy Cannon 6 | . . 1 . . 1 2 . . . . . . 2 . . . . Ballistic Gun 6 | . . 1 1 . 1 1 1 . . . . 1 . . . . . Ballistic Cannon 3 | . . . . . . . . . . . . 1 2 . . . . Launcher 6 | . . . . . . . . . . 1 . 3 . . 1 . 1 Special Weapon . | . . . . . . . . . . . . . . . . . . Impact Weapon . | . . . . . . . . . . . . . . . . . . Slashing Weapon 1 | . . . . . . . . . . . . 1 . . . . . Piercing Weapon . | . . . . . . . . . . . . . . . . . . Special Melee Weapon . | . . . . . . . . . . . . . . . . . . Unidentified Prototypes 15 | . . 1 4 . . . . . . . . 1 . 2 . . 7 Parts Lost 31 | . 1 . 1 . . . . . . . . 7 1 . . 7 14 Power 3 | . . . 1 . . . . . . . . 1 . . . . 1 Propulsion 7 | . . . . . . . . . . . . 1 1 . . 1 4 Utility 7 | . . . . . . . . . . . . . . . . 2 5 Weapon 14 | . 1 . . . . . . . . . . 5 . . . 4 4 Highest Loss Streak 7 | . 1 . 1 . . . . . . . . 2 1 . . 7 7 To Critical Strikes . | . . . . . . . . . . . . . . . . . . Average Backups 11 | 6 7 9 9 11 11 11 13 9 9 9 11 9 12 13 13 11 11 Power . | 1 1 1 1 1 1 1 1 1 1 1 1 . 1 1 1 . 1 Propulsion 1 | 4 4 1 1 2 2 1 1 2 2 2 2 2 1 1 1 . . Utility 5 | . 1 3 5 6 6 6 6 5 5 5 5 5 5 6 6 5 6 Weapon 2 | 1 1 3 2 2 1 2 4 1 1 1 2 1 3 4 4 4 3 Tool/Special . | . . . . . . . . . . . . . . . . . . Unused Backups 27 | . . 5 7 . . 2 2 . 1 . . 1 . 1 . 3 5 Power 5 | . . . 3 . . 1 . . . . . . . . . . 1 Propulsion 5 | . . 4 . . . . . . . . . . . . . 1 . Utility 10 | . . 1 1 . . 1 . . 1 . . . . 1 . 2 3 Weapon 7 | . . . 3 . . . 2 . . . . 1 . . . . 1 Tool/Special . | . . . . . . . . . . . . . . . . . . Average Slot Usage (%) 83 | . 81 96 96 100 88 99 69 82 92 90 62 79 81 81 81 74 74 Engine 5 | . 14 14 11 14 9 6 4 . . . . . . 5 6 4 5 Reactor 1 | . . . . . . . 2 7 7 7 7 7 6 . . . . Treads 14 | . . 25 24 . 18 23 15 7 15 15 15 8 12 12 12 14 7 Leg 2 | . 28 2 3 28 5 . . . . . . . . . . . 7 Device 13 | . . 12 13 14 10 15 12 14 19 22 15 15 14 16 18 15 5 Storage 7 | . 15 14 14 14 9 7 7 7 7 7 7 7 6 6 6 4 6 Processor 10 | . . . . . 5 14 17 7 7 7 15 15 17 13 12 12 14 Protection 1 | . . . . . . . . 6 2 . . . . . . . 5 Energy Gun 2 | . 23 2 . . . 3 . . . . . . . . . . 10 Energy Cannon 8 | . . 12 11 . 5 7 . 13 15 11 . 8 9 12 6 4 5 Ballistic Gun 6 | . . 12 16 28 23 18 7 14 15 14 . 6 5 . . . . Ballistic Cannon 3 | . . . . . . . . . . . . 1 3 12 12 9 2 Launcher 1 | . . . . . . . . . . 3 . 4 . . 5 4 . Peak Build Rating 95 | 6 7 16 40 39 45 58 82 78 72 72 53 66 81 90 81 87 95 Average Rating 62 | 6 5 11 22 39 41 54 76 66 70 70 46 59 77 78 80 72 82 On Entrance 50 | 6 6 5 16 39 39 44 57 79 68 72 56 49 65 80 79 81 59 Naked Turns . | . . . . . . . . . . . . . . . . . . Heaviest Build 72 | 14 24 27 41 37 42 55 57 65 69 69 43 61 72 70 71 71 71 Greatest Support 163 | 20 20 40 40 40 62 64 92 90 90 90 90 90 140 140 140 163 140 Greatest Overweight (x) 12 | . 1 . 12 . . . . . . . . . . . . 2 2 Average Overweight (x) . | . . . . . . . . . . . . . . . . . . Largest Inventory Capacity 15 | 8 10 10 15 15 15 15 15 15 15 15 15 15 15 15 15 15 15 Average Capacity 14 | 8 9 10 14 15 15 15 15 15 15 15 15 15 15 15 15 13 14 Most Carried 15 | 6 9 10 15 14 15 15 15 15 15 15 15 15 15 15 15 15 15 Average Carried 13 | 6 7 9 12 14 14 14 14 14 14 14 14 12 13 14 14 13 13 Final Capacity 15 | 8 10 10 15 15 15 15 15 15 15 15 15 15 15 15 15 15 5 Final Carried 15 | 6 9 10 14 14 15 15 15 14 15 13 15 12 15 15 15 14 4 Class Distribution -------------------- 31% | Skirmisher 23% | Tank 22% | Mutant 7% | Scavenger-Skirmisher 6% | Scavenger-Assassin 4% | Scavenger-Mutant 3% | Gunner Dominant Class ---------------- Mutant | -10/Materials Mutant | -10/Mines Mutant | -10/Exiles Scavenger-Mutant | -9/Mines Gunner | -8/Materials Skirmisher | -7/Factory Gunner | -7/Waste Tank | -7/Factory Skirmisher | -7/Lower Caves Skirmisher | -7/Lower Caves Scavenger-Mutant | -7/Data Miner Scavenger-Skirmisher | -6/Proximity Caves Scavenger-Skirmisher | -6/Factory Skirmisher | -6/Lower Caves Skirmisher | -6/Lower Caves Tank | -6/Zion Tank | -6/Deep Caves Resources | -11 -10 -10 -10 -9 -8 -7 -7 -7 -7 -7 -7 -6 -6 -6 -6 -6 -6 ----------- Run | Yrd Mat Min Exi Min Mat Fac Was Fac Low Low Dat Pro Fac Low Low Zio Dee Matter Collected 3719 | 210 . 97 150 . 171 186 547 . 335 159 . 512 120 414 72 307 439 Remotely . | . . . . . . . . . . . . . . . . . . Salvage Created 3951 | . 80 132 . . 172 262 1259 67 129 152 . 411 180 66 197 376 468 Parts 183 | . 4 3 . . 5 18 15 4 9 18 . 26 12 2 3 39 25 Haulers Intercepted . | . . . . . . . . . . . . . . . . . . Recyclers Shooed . | . . . . . . . . . . . . . . . . . . Parts Field Recycled . | . . . . . . . . . . . . . . . . . . Retrieved Matter . | . . . . . . . . . . . . . . . . . . Parts Self-Destructed 36 | . . . . . . . . . 8 15 . 11 . 2 . . . Prevented 13 | . . . . . . . . . 1 . . 12 . . . . . Kills | -11 -10 -10 -10 -9 -8 -7 -7 -7 -7 -7 -7 -6 -6 -6 -6 -6 -6 ------- Run | Yrd Mat Min Exi Min Mat Fac Was Fac Low Low Dat Pro Fac Low Low Zio Dee Combat Hostiles Destroyed 52 | . 2 3 . . 4 4 5 1 4 6 . 8 4 1 . 4 6 Guns 22 | . 1 2 . . 1 2 5 1 3 2 . 4 1 . . . . Cannons 12 | . . 1 . . 1 2 . . 1 1 . 2 2 1 . 1 . AOE 17 | . 1 . . . 2 . . . . 3 . 2 . . . 3 6 Classes Destroyed 17 | . 1 1 . . 1 3 1 . 2 1 . 2 . 1 1 2 1 Builder 1 | . . . . . . 1 . . . . . . . . . . . Operator 1 | . . . . . 1 . . . . . . . . . . . . Watcher 1 | . . . . . . 1 . . . . . . . . . . . Swarmer 9 | . . . . . . . . . 3 3 . 3 . . . . . Grunt 9 | . 2 2 . . 3 2 . . . . . . . . . . . Protector 2 | . . . . . . . . . . . . 2 . . . . . Sentry 5 | . . 1 . . 1 1 . 1 . . . . 1 . . . . Demolisher 3 | . . . . . . . . . . . . 3 . . . . . Hunter 2 | . . . . . . . . . 1 . . . . 1 . . . Programmer 6 | . . . . . . 1 . . . 2 . . 3 . . . . Compactor 5 | . . . . . . . 5 . . . . . . . . . . Zionite 17 | . . . . . . . . . . . . . . . . 17 . Z-Technician 5 | . . . . . . . . . . . . . . . . . 5 Z-Light 6 | . . . . . . . . . . . . . . . . . 6 Decomposer 1 | . . . . . . . . . . . . . . 1 . . . Samaritan 3 | . . . . . . . . . . . . . . . 3 . . Master Thief 1 | . . . . . . . . . . 1 . . . . . . . Mutant 4 | . . . . . . . . . . . . . . . . 4 . Best Kill Streak 13 | . 2 2 . . 3 2 3 1 4 3 . 3 1 1 . 13 6 Combat Bots Only 6 | . 2 2 . . 2 2 3 1 4 3 . 3 1 1 . 3 6 Max Kills in Single Turn 4 | . 1 1 . . 3 1 1 1 1 2 . 1 1 1 1 4 2 Gunslinging . | . . . . . . . . . . . . . . . . . . Exploded 2 | . 1 . . . 2 . . . . 2 . 1 . . . 1 2 Melee . | . . . . . . . . . . . . . . . . . . Uniques/NPCs Destroyed 2 | . . . 1 . . . . . . . . . . . . 1 . 8R-AWN (-10/Exiles) Imprinter (-6/Zion) Combat | -11 -10 -10 -10 -9 -8 -7 -7 -7 -7 -7 -7 -6 -6 -6 -6 -6 -6 -------- Run | Yrd Mat Min Exi Min Mat Fac Was Fac Low Low Dat Pro Fac Low Low Zio Dee Hostile Shots Fired 409 | . 3 4 2 . 7 23 1 9 16 30 . 69 16 7 . 152 70 Missed 123 | . 2 2 . . 2 10 . 2 3 10 . 30 2 . . 50 10 Hits 286 | . 1 2 2 . 5 13 1 7 13 20 . 39 14 7 . 102 60 Melee 10 | . . . . . . . 1 . . 3 . . . 1 . 5 . Projectile 276 | . 1 2 2 . 5 13 . 7 13 17 . 39 14 6 . 97 60 AOE 13 | . . . . . . . . . . . . 13 . . . . . Critical Strikes 7 | . . . 1 . 2 1 1 . . . . . 1 . . . 1 Damage Taken 6085 | . 157 26 126 . 110 157 45 51 205 402 . 770 230 110 . 1387 2309 Core 1216 | . 112 . . . 32 6 . 6 . 48 . 161 . 21 . 113 717 Absorbed by Shields . | . . . . . . . . . . . . . . . . . . Reduced by Siege Mode 47 | . . . . . . . . . . . . 11 . . . . 36 Redirected to Shielding 128 | . . . . . . . . . . . . . . . . . 128 Core Remaining (%) 79 | 100 . . . 55 94 . . . . . . 68 . . . . . Volleys Fired 226 | . 3 6 1 . 11 7 29 2 7 13 . 40 8 7 18 23 51 Largest 4 | . 2 2 1 . 4 4 1 4 4 4 . 4 4 4 1 4 4 Hottest 270 | . 90 100 60 . 136 207 60 207 207 207 . 217 258 258 90 238 270 Shots Fired 466 | . 6 12 1 . 23 26 29 6 26 48 . 85 28 19 18 76 63 Gun 182 | . 6 8 . . 20 17 29 2 16 24 . 26 6 . . 13 15 Cannon 255 | . . 4 1 . 3 9 . 4 10 20 . 55 22 19 18 52 38 Launcher 29 | . . . . . . . . . . 4 . 4 . . . 11 10 Special . | . . . . . . . . . . . . . . . . . . Kinetic 197 | . . 4 . . 20 16 29 2 16 24 . 35 13 8 . 30 . Thermal 182 | . 3 8 1 . 3 7 . 2 5 14 . 25 15 11 18 22 48 Explosive 24 | . . . . . . . . . . 4 . 4 . . . 11 5 Electromagnetic 58 | . 3 . . . . 3 . 2 5 6 . 21 . . . 13 5 Phasic 5 | . . . . . . . . . . . . . . . . . 5 Robot Hit Streak 27 | . 3 5 . . 14 17 21 7 9 6 . 13 9 4 15 27 7 Robot Miss Streak 7 | . 1 2 1 . 1 . 3 . 6 3 . 7 4 6 1 3 2 Penetration Max 1 | . . . . . . 1 . . . . . . . . . . . Secondary Targets . | . . . . . . . . . . . . . . . . . . Shots Hit Robots 268 | . 5 6 . . 15 16 29 3 7 21 . 46 14 8 16 47 35 Core Hits 163 | . 3 5 . . 7 11 16 2 4 9 . 24 5 4 3 41 29 Critical Kills 6 | . . . . . . 1 . . 2 1 . . 1 . 1 . . Critical Parts Destroyed 3 | . . . . . 1 1 . . 1 . . . . . . . . Critical Strikes 11 | . . . . . 1 2 . . 3 2 . 1 1 . 1 . . Meltdown 2 | . . . . . . . . . . . . . 1 . 1 . . Destroy 7 | . . . . . 1 2 . . 3 1 . . . . . . . Corrupt 2 | . . . . . . . . . . 1 . 1 . . . . . Melee Attacks 6 | . . . . . . . . . . . . 1 1 . . . 4 Impact . | . . . . . . . . . . . . . . . . . . Slashing 6 | . . . . . . . . . . . . 1 1 . . . 4 Piercing . | . . . . . . . . . . . . . . . . . . Sneak Attacks 1 | . . . . . . . . . . . . . 1 . . . . Combat Hostiles . | . . . . . . . . . . . . . . . . . . Follow-up Attacks . | . . . . . . . . . . . . . . . . . . Damage Inflicted 11005 | . 90 84 . . 568 371 2484 84 156 782 . 1172 410 192 541 2079 1992 Guns 3982 | . 50 50 . . 219 200 2484 21 101 219 . 197 56 . . 133 252 Cannons 3858 | . . 34 . . 34 171 . 49 55 164 . 804 354 192 541 706 754 Explosions 3130 | . 40 . . . 315 . . . . 399 . 171 . . . 1240 965 Melee 21 | . . . . . . . . . . . . . . . . . 21 Ramming 14 | . . . . . . . . 14 . . . . . . . . . Kinetic 4222 | . . 13 . . 219 168 2484 21 101 219 . 387 130 105 . 375 . Thermal 3150 | . 65 71 . . 34 160 . 24 . 152 . 297 280 87 541 331 1108 Explosive 2719 | . . . . . 315 . . . . 399 . 171 . . . 1240 594 Electromagnetic 813 | . 25 . . . . 43 . 25 55 12 . 317 . . . 133 203 Impact . | . . . . . . . . . . . . . . . . . . Slashing 21 | . . . . . . . . . . . . . . . . . 21 Piercing . | . . . . . . . . . . . . . . . . . . Phasic 66 | . . . . . . . . . . . . . . . . . 66 Highest Corruption 19 | . . . . . . 1 17 17 17 19 19 19 2 2 . 1 . Average Corruption 13 | . . . . . . 1 11 17 17 17 19 19 1 1 . 1 . Corruption Purged 3 | . . . . . . . . . . . . . . 2 . 1 . Corruption Blocked . | . . . . . . . . . . . . . . . . . . Effects 141 | . . . . . . 1 4 17 28 19 6 50 10 6 . . . Message Errors 28 | . . . . . . 1 1 3 4 4 2 10 2 1 . . . Matter Fused 39 | . . . . . . . 2 6 10 4 1 13 2 1 . . . Heat Flow Errors 15 | . . . . . . . 1 3 2 . 1 7 1 . . . . Energy Discharges 20 | . . . . . . . . 3 4 4 1 4 3 1 . . . Parts Rejected 2 | . . . . . . . . . . . . 2 . . . . . Parts Fused 1 | . . . . . . . . . . . . 1 . . . . . Data Loss (minor) 20 | . . . . . . . . 1 4 3 1 9 . 2 . . . Data Loss (major) 6 | . . . . . . . . . 1 1 . 3 . 1 . . . Misfires 7 | . . . . . . . . 1 2 2 . 1 1 . . . . Alerts 2 | . . . . . . . . . 1 . . . 1 . . . . Weapon Failures 1 | . . . . . . . . . . 1 . . . . . . . Overload Shots . | . . . . . . . . . . . . . . . . . . Overflow Damage 342 | . 44 . . . 25 . . . . 51 . . . 35 80 27 80 Projectiles 155 | . . . . . . . . . . . . . . 35 80 10 30 Explosions 187 | . 44 . . . 25 . . . . 51 . . . . . 17 50 Melee . | . . . . . . . . . . . . . . . . . . Knockbacks 5 | . . . . . . . . . . . . . . 2 . 3 . Impact . | . . . . . . . . . . . . . . . . . . Kinetic 5 | . . . . . . . . . . . . . . 2 . 3 . Secondary . | . . . . . . . . . . . . . . . . . . Self-Inflicted Damage 345 | . 146 . . . . . . . . 151 . . . . . 48 . Shots 7 | . 2 . . . . . . . . 4 . . . . . 1 . Rammed 2 | . . . . . . . . 2 . . . . . . . . . Targets Rammed 2 | . . . . . . . . 2 . . . . . . . . . Kicked . | . . . . . . . . . . . . . . . . . . Crushed . | . . . . . . . . . . . . . . . . . . Highest Temperature 503 | . 108 96 22 . 23 48 429 165 503 218 181 265 192 124 . 162 198 Average Temperature 98 | . 56 48 12 . 11 21 176 66 205 83 90 107 65 55 . 51 71 Received Heat Transfer 674 | . 6 9 . . 81 30 . 12 . . . 24 18 . . 135 359 Effects 3 | . . . . . . . . . 3 . . . . . . . . Energy Bleed 1 | . . . . . . . . . 1 . . . . . . . . Damage (minor) 1 | . . . . . . . . . 1 . . . . . . . . Damage (major) 1 | . . . . . . . . . 1 . . . . . . . . Siege Activations 6 | . . . . . . . . . . . . 3 . . . 1 2 Total Turns 47 | . . . . . . . . . . . . 18 . . . 5 24 Longest Duration 15 | . . . . . . . . . . . . 12 . . . 5 15 Martial Activations . | . . . . . . . . . . . . . . . . . . Shielding Activations . | . . . . . . . . . . . . . . . . . . Robots Disrupted . | . . . . . . . . . . . . . . . . . . Combat Hostiles . | . . . . . . . . . . . . . . . . . . Robots Corrupted . | . . . . . . . . . . . . . . . . . . Combat Hostiles . | . . . . . . . . . . . . . . . . . . Parts Fried 5 | . . . . . . . . . . . . 5 . . . . . Impact Corruptions . | . . . . . . . . . . . . . . . . . . Robots Melted 2 | . . . . . . . . . . . . . 1 . 1 . . Combat Hostiles 2 | . . . . . . . . . . . . . 1 . 1 . . Parts Melted 13 | . . 3 . . . . . . . 1 . . 1 . 5 2 1 Heat Transferred 4903 | . 74 185 . . 74 248 . 50 . 250 . 401 400 150 850 612 1609 Parts Sabotaged . | . . . . . . . . . . . . . . . . . . Parts Stolen 4 | . . . . . . . . . . 3 . . . 1 . . . Parts Stripped . | . . . . . . . . . . . . . . . . . . Power Chain Reactions 3 | . 1 . . . . . . . . . . . . . . . 2 Alert | -11 -10 -10 -10 -9 -8 -7 -7 -7 -7 -7 -7 -6 -6 -6 -6 -6 -6 ------- Run | Yrd Mat Min Exi Min Mat Fac Was Fac Low Low Dat Pro Fac Low Low Zio Dee Maximum Alert Level . | . . . . . . . . . . . . . . . . . . Low Security (%) 100 | 100 100 100 . 100 100 100 100 100 . . . . 100 . . . . Level 1 . | . . . . . . . . . . . . . . . . . . Level 2 . | . . . . . . . . . . . . . . . . . . Level 3 . | . . . . . . . . . . . . . . . . . . Level 4 . | . . . . . . . . . . . . . . . . . . Level 5 . | . . . . . . . . . . . . . . . . . . High Security . | . . . . . . . . . . . . . . . . . . Max Security . | . . . . . . . . . . . . . . . . . . Peak Influence 116 | . 92 63 . . 116 85 7 30 . . . . 76 . . . . Initial 45 | . . 27 . . . 45 7 . . . . . 2 . . . . Average 16 | . 30 11 . . 64 13 1 3 . . . . 11 . . . . Influence Increases 1297 | . 117 91 . . 221 113 12 63 100 130 . 187 228 30 5 . . Destroy 0b10 Robot/C 760 | . 40 60 . . 80 80 . 20 80 100 . 140 140 20 . . . Destroy 0b10 Robot/NC 55 | . . . . . 5 10 . . . . . 35 . . 5 . . Destroy Leader 182 | . . 10 . . 20 22 . 10 20 30 . 10 50 10 . . . Allied During Kill 15 | . . 6 . . . . . . . . . 2 7 . . . . Successful Hack 52 | . 18 . . . 16 . . 18 . . . . . . . . . Disable Machine 90 | . 30 15 . . 30 . . 15 . . . . . . . . . Destroy Structure 98 | . 29 . . . 25 1 12 . . . . . 31 . . . . Lose Combat Pursuer 45 | . . . . . 45 . . . . . . . . . . . . Influence Decreases 1297 | . 45 163 . . 120 194 32 43 120 130 . 183 208 54 5 . . Entered New Map 134 | . . 45 . . . 56 13 . 8 . . . 2 10 . . . Time Decay 1115 | . 35 118 . . 120 138 19 43 112 130 . 173 178 44 5 . . Lost Part 20 | . 10 . . . . . . . . . . 10 . . . . . Lost Ally 28 | . . . . . . . . . . . . . 28 . . . . Squads Dispatched 6 | . . . . . 1 1 . . . . . . 4 . . . . Investigation 1 | . . . . . . . . . . . . . 1 . . . . Extermination 4 | . . . . . . 1 . . . . . . 3 . . . . Reinforcement 1 | . . . . . 1 . . . . . . . . . . . . Assault . | . . . . . . . . . . . . . . . . . . Garrison . | . . . . . . . . . . . . . . . . . . Intercept . | . . . . . . . . . . . . . . . . . . Searches Triggered . | . . . . . . . . . . . . . . . . . . Construction Impeded . | . . . . . . . . . . . . . . . . . . Haulers Reinforced . | . . . . . . . . . . . . . . . . . . Active Scanning Responses . | . . . . . . . . . . . . . . . . . . Cargo Convoy Interrupts . | . . . . . . . . . . . . . . . . . . Stealth | -11 -10 -10 -10 -9 -8 -7 -7 -7 -7 -7 -7 -6 -6 -6 -6 -6 -6 --------- Run | Yrd Mat Min Exi Min Mat Fac Was Fac Low Low Dat Pro Fac Low Low Zio Dee Distress Signals 20 | . . . . . . 1 . . . . . 19 . . . . . Communications Jammed . | . . . . . . . . . . . . . . . . . . Distress Signals . | . . . . . . . . . . . . . . . . . . Times Spotted 145 | . 3 4 8 . 8 6 5 2 4 9 . 13 7 3 . 27 46 Peak Tracking Total 38 | . 2 2 8 . 3 3 1 2 3 4 . 3 3 1 . 11 38 Tactical Retreats 4 | . . . 1 . 3 . . . . . . . . . . . . Traps | -11 -10 -10 -10 -9 -8 -7 -7 -7 -7 -7 -7 -6 -6 -6 -6 -6 -6 ------- Run | Yrd Mat Min Exi Min Mat Fac Was Fac Low Low Dat Pro Fac Low Low Zio Dee Traps Triggered 7 | . . . . . . 2 . 2 . . . . 3 . . . . Indirectly . | . . . . . . . . . . . . . . . . . . Trap Hack Attempts . | . . . . . . . . . . . . . . . . . . Triggered . | . . . . . . . . . . . . . . . . . . Disarmed . | . . . . . . . . . . . . . . . . . . Reprogrammed . | . . . . . . . . . . . . . . . . . . Reused . | . . . . . . . . . . . . . . . . . . Traps Extracted . | . . . . . . . . . . . . . . . . . . Installed . | . . . . . . . . . . . . . . . . . . Triggered . | . . . . . . . . . . . . . . . . . . Machines | -11 -10 -10 -10 -9 -8 -7 -7 -7 -7 -7 -7 -6 -6 -6 -6 -6 -6 ---------- Run | Yrd Mat Min Exi Min Mat Fac Was Fac Low Low Dat Pro Fac Low Low Zio Dee Machines Disabled 12 | . 2 2 1 . 2 . . 1 . . . 3 . . . . 1 Max in Single Turn 2 | . 2 1 . . 1 . . 1 . . . 1 . . . . 1 Machines Repaired . | . . . . . . . . . . . . . . . . . . Machines Dismantled . | . . . . . . . . . . . . . . . . . . Machines Sabotaged . | . . . . . . . . . . . . . . . . . . Overloaded Fab Kills . | . . . . . . . . . . . . . . . . . . Hacking | -11 -10 -10 -10 -9 -8 -7 -7 -7 -7 -7 -7 -6 -6 -6 -6 -6 -6 --------- Run | Yrd Mat Min Exi Min Mat Fac Was Fac Low Low Dat Pro Fac Low Low Zio Dee Machines Accessed 20 | . 2 1 1 . 4 3 . 2 . . 4 . 2 1 . . . Terminals 8 | . 2 . . . 3 1 . 1 . . . . 1 . . . . Fabricators 3 | . . . . . . 1 . 1 . . . . 1 . . . . Repair Stations . | . . . . . . . . . . . . . . . . . . Recycling Units . | . . . . . . . . . . . . . . . . . . Scanalyzers 1 | . . . . . 1 . . . . . . . . . . . . Garrison Access 1 | . . . . . . 1 . . . . . . . . . . . Total Hacks 66 | . 6 1 1 . 16 3 . 4 . . 29 . 5 1 . . . Successful 43 | . 4 1 1 . 4 . . 2 . . 29 . 1 1 . . . Failed 22 | . 1 . . . 12 3 . 2 . . . . 4 . . . . Catastrophic 5 | . . . . . 2 3 . . . . . . . . . . . Database Lockouts 1 | . 1 . . . . . . . . . . . . . . . . Manual 28 | . 7 . 1 . 12 1 . . . . . . 2 . . 5 . Terminals 22 | . 6 . . . 12 1 . 1 . . . . 2 . . . . Fabricators 7 | . . . . . . 1 . 3 . . . . 3 . . . . Repair Stations . | . . . . . . . . . . . . . . . . . . Recycling Units . | . . . . . . . . . . . . . . . . . . Scanalyzers 4 | . . . . . 4 . . . . . . . . . . . . Garrison Access 1 | . . . . . . 1 . . . . . . . . . . . Terminal Hacks 35 | . 2 1 1 . . . . 1 . . 29 . . 1 . . . Record 7 | . . . . . . . . . . . 7 . . . . . . Part Schematic 13 | . . . . . . . . . . . 13 . . . . . . Robot Schematic 6 | . . . . . . . . . . . 6 . . . . . . Prototype ID Bank 4 | . 1 . . . . . . . . . 3 . . . . . . Open Door 2 | . . 1 . . . . . . . . . . . 1 . . . Branch Access Points 2 | . 1 . . . . . . 1 . . . . . . . . . Proto ID Catalog 1 | . . . 1 . . . . . . . . . . . . . . Fabricator Hacks 2 | . . . . . . . . 1 . . . . 1 . . . . Load Schematic 2 | . . . . . . . . 1 . . . . 1 . . . . Repair Station Hacks . | . . . . . . . . . . . . . . . . . . Recycling Unit Hacks . | . . . . . . . . . . . . . . . . . . Scanalyzer 3 | . . . . . 3 . . . . . . . . . . . . Insert Component 1 | . . . . . 1 . . . . . . . . . . . . Analyze 2 | . . . . . 2 . . . . . . . . . . . . Garrison Access Hacks . | . . . . . . . . . . . . . . . . . . Unauthorized Hacks 3 | . 2 . . . 1 . . . . . . . . . . . . Terminals 3 | . 2 . . . 1 . . . . . . . . . . . . Botnet 2 | . 1 . . . 1 . . . . . . . . . . . . Disrupt 1 | . 1 . . . . . . . . . . . . . . . . Fabricators . | . . . . . . . . . . . . . . . . . . Repair Stations . | . . . . . . . . . . . . . . . . . . Recycling Units . | . . . . . . . . . . . . . . . . . . Scanalyzers . | . . . . . . . . . . . . . . . . . . Garrison Access . | . . . . . . . . . . . . . . . . . . Data Cores Recovered . | . . . . . . . . . . . . . . . . . . Used . | . . . . . . . . . . . . . . . . . . Hacking Detections 11 | . 2 . . . 3 3 . 1 . . . . 2 . . . . Full Trace Events . | . . . . . . . . . . . . . . . . . . Feedback Events . | . . . . . . . . . . . . . . . . . . Feedback Blocked . | . . . . . . . . . . . . . . . . . . Robot Schematics Acquired 9 | . . . . . . . . . . . 6 . . . . 3 . Robots Built . | . . . . . . . . . . . . . . . . . . Authchips . | . . . . . . . . . . . . . . . . . . Time . | . . . . . . . . . . . . . . . . . . Total Robot Build Rating . | . . . . . . . . . . . . . . . . . . Part Schematics Acquired 28 | . . . . . 1 . . . . . 13 . . . . 14 . Parts Built . | . . . . . . . . . . . . . . . . . . Authchips . | . . . . . . . . . . . . . . . . . . Time . | . . . . . . . . . . . . . . . . . . Total Part Build Rating . | . . . . . . . . . . . . . . . . . . Parts Repaired . | . . . . . . . . . . . . . . . . . . Time . | . . . . . . . . . . . . . . . . . . Parts Recycled . | . . . . . . . . . . . . . . . . . . Recycled Matter . | . . . . . . . . . . . . . . . . . . Retrieved Matter . | . . . . . . . . . . . . . . . . . . Retrieved Components . | . . . . . . . . . . . . . . . . . . Parts Scanalyzed 1 | . . . . . 1 . . . . . . . . . . . . Part Schematics Acquired 1 | . . . . . 1 . . . . . . . . . . . . Parts Damaged . | . . . . . . . . . . . . . . . . . . Bothacking | -11 -10 -10 -10 -9 -8 -7 -7 -7 -7 -7 -7 -6 -6 -6 -6 -6 -6 ------------ Run | Yrd Mat Min Exi Min Mat Fac Was Fac Low Low Dat Pro Fac Low Low Zio Dee Used RIF Installer . | . . . . . . . . . . . . . . . . . . Robots Hacked . | . . . . . . . . . . . . . . . . . . Non-combat . | . . . . . . . . . . . . . . . . . . Combat . | . . . . . . . . . . . . . . . . . . Robot Hacks Applied . | . . . . . . . . . . . . . . . . . . Relay Couplers Released . | . . . . . . . . . . . . . . . . . . Fabnet Peak Effective % . | . . . . . . . . . . . . . . . . . . Robots Rewired 2 | . . . . . . . . . . . . 2 . . . . . Allies Hacked . | . . . . . . . . . . . . . . . . . . Hacks Repelled . | . . . . . . . . . . . . . . . . . . Allies | -11 -10 -10 -10 -9 -8 -7 -7 -7 -7 -7 -7 -6 -6 -6 -6 -6 -6 -------- Run | Yrd Mat Min Exi Min Mat Fac Was Fac Low Low Dat Pro Fac Low Low Zio Dee Total Allies 8 | . . 2 . . . . . . . . . 2 . . . 4 . Largest Group 4 | . . 2 2 . . . . . . . . 2 2 . . 4 . Highest-Rated Group 157 | . . 51 51 . . . . . . . . 68 68 . . 157 . Highest-Rated Ally 41 | . . 31 31 . . . . . . . . 34 34 . . 41 . Total Orders 3 | . . . 3 . . . . . . . . . . . . . . ROAM 1 | . . . 1 . . . . . . . . . . . . . . FOLLOW 1 | . . . 1 . . . . . . . . . . . . . . RETURN 1 | . . . 1 . . . . . . . . . . . . . . Ally Attacks 81 | . . 3 51 . 7 . . . . . . 13 7 . . . . Total Damage 3446 | . . 60 1845 . 40 . . . . . . 889 612 . . . . Kills 13 | . . . 8 . . . . . . . . 2 3 . . . . Allies Corrupted 1 | . . . . . . . . . . . . . 1 . . . . Allies Melted . | . . . . . . . . . . . . . . . . . . Turrets Deployed 3 | . . . 3 . . . . . . . . . . . . . . Intel | -11 -10 -10 -10 -9 -8 -7 -7 -7 -7 -7 -7 -6 -6 -6 -6 -6 -6 ------- Run | Yrd Mat Min Exi Min Mat Fac Was Fac Low Low Dat Pro Fac Low Low Zio Dee Active Infowar (turns) 9854 | . . . 5 . . 706 20 353 648 408 152 1062 881 1060 533 1955 2071 Optics 7733 | . . . . . . . . . . 19 152 1062 881 1060 533 1955 2071 Sensors 6406 | . . . . . . 706 12 353 648 408 152 1062 881 1050 533 601 . Cloaking 1130 | . . . 5 . . . 8 . 349 291 . . . . . 92 385 ECM 2 | . . . . . . . . . . . . . . . . 2 . Robot Analysis Total . | . . . . . . . . . . . . . . . . . . Derelict Logs Recovered 4 | . . 1 . . . . . . 1 . . . . 1 . 1 . Drone Launches 7 | . . . 5 . 2 . . . . . . . . . . . . Drone Recoveries 6 | . . . 4 . 2 . . . . . . . . . . . . Exploration | -11 -10 -10 -10 -9 -8 -7 -7 -7 -7 -7 -7 -6 -6 -6 -6 -6 -6 ------------- Run | Yrd Mat Min Exi Min Mat Fac Was Fac Low Low Dat Pro Fac Low Low Zio Dee Turns Passed 12584 | 4 122 622 1458 53 317 706 179 353 648 408 152 1062 881 1060 533 1955 2071 Spaces Moved 7211 | 3 82 365 881 34 176 421 83 200 382 211 94 554 518 635 308 1259 1005 Core 346 | . . . 1 . . . . . . . . . . . . 330 15 Treads 6143 | . . 329 765 . 120 421 83 200 382 211 94 554 518 635 308 929 594 Legs 722 | 3 82 36 115 34 56 . . . . . . . . . . . 396 Wheels . | . . . . . . . . . . . . . . . . . . Hover . | . . . . . . . . . . . . . . . . . . Flight . | . . . . . . . . . . . . . . . . . . Fastest Speed 50 | 120 120 120 140 140 140 150 150 160 160 160 160 160 160 160 160 50 50 Average Speed 155 | 120 123 156 158 140 151 153 154 160 160 160 160 160 160 160 160 131 177 Slowest Speed 650 | 120 190 160 650 140 160 155 160 160 160 160 160 160 160 160 160 160 310 Overloaded Moves . | . . . . . . . . . . . . . . . . . . Propulsion Burnouts . | . . . . . . . . . . . . . . . . . . Robots Hopped . | . . . . . . . . . . . . . . . . . . Potential Cave-ins . | . . . . . . . . . . . . . . . . . . Cave-ins Triggered . | . . . . . . . . . . . . . . . . . . Exploration Rate (%) 47 | 2 24 67 55 10 20 11 84 7 58 44 75 68 17 80 59 91 90 Regions Visited 17 Branch Regions 11 Pre-discovered Areas 5 | . . . . . . . . . . . 1 . . 1 . 3 . Known Exits Taken 11 | . 1 . . . 1 . . 1 1 1 1 1 1 1 1 1 . Unknown Exits Taken 4 | 1 . 1 1 1 . . . . . . . . . . . . . Scrap Searched 17 | . . . . . . . . . 5 1 . 2 . 4 2 3 . Spaces Dug 4 | . . . . . . . . . . . . . . 2 . . 2 Terrain Destroyed 198 | . 30 . . . 26 . 15 . 2 49 . 11 3 8 1 15 38 Melee . | . . . . . . . . . . . . . . . . . . Projectile 41 | . . . . . 5 . 15 . 2 2 . . 3 8 1 . 5 AOE 156 | . 30 . . . 20 . . . . 47 . 11 . . . 15 33 Terrain Rammed . | . . . . . . . . . . . . . . . . . . Walls Destroyed . | . . . . . . . . . . . . . . . . . . Machines Disabled . | . . . . . . . . . . . . . . . . . . Actions | -11 -10 -10 -10 -9 -8 -7 -7 -7 -7 -7 -7 -6 -6 -6 -6 -6 -6 --------- Run | Yrd Mat Min Exi Min Mat Fac Was Fac Low Low Dat Pro Fac Low Low Zio Dee Total 8229 | 3 97 409 949 39 209 471 140 227 402 248 97 663 550 667 331 1507 1220 Wait 412 | . 9 16 16 6 . 9 . 7 10 20 . 33 4 10 . 174 98 Move 7195 | 2 81 364 880 33 175 421 82 199 381 210 93 553 517 634 307 1258 1005 Hop . | . . . . . . . . . . . . . . . . . . Pick Up 70 | . 2 4 10 . 4 5 8 1 2 1 . 4 2 2 1 13 11 Fast Attach 74 | . 1 4 3 . 4 8 3 6 . 1 1 7 6 5 1 15 9 Attach 51 | . . 3 7 . 5 2 1 5 . . . 7 2 2 1 3 13 Detach 49 | . 1 5 9 . 4 5 1 2 . . 2 3 4 3 1 2 7 Swap 31 | 1 . 1 4 . 1 2 3 1 1 3 . 1 3 . . 2 8 Drop 94 | . . 6 13 . 5 12 13 2 1 . 1 3 3 3 2 17 13 Fire 226 | . 3 6 1 . 11 7 29 2 7 13 . 40 8 7 18 23 51 Melee 6 | . . . . . . . . . . . . 1 1 . . . 4 Ram . | . . . . . . . . . . . . . . . . . . Kick . | . . . . . . . . . . . . . . . . . . Crush 2 | . . . . . . . . 2 . . . . . . . . . Escape Stasis . | . . . . . . . . . . . . . . . . . . Rewire 19 | . . . 6 . . . . . . . . 11 . 1 . . 1 Trap . | . . . . . . . . . . . . . . . . . . Miscellaneous . | . . . . . . . . . . . . . . . . . . Route ------- -11/Scrapyard -10/Materials -10/Mines (discovered 3 exits: [*Mat x2] / *Exi) -10/Exiles -9/Mines -8/Materials (discovered 2 exits: *Fac x2) -7/Factory -7/Waste -7/Factory (discovered 5 exits: *Fac / Sto x2 / *Low x2) -7/Lower Caves -7/Lower Caves -7/Data Miner -6/Proximity Caves -6/Factory (discovered 2 exits: *Fac / *Low) -6/Lower Caves -6/Lower Caves -6/Zion (discovered 2 exits: *Dee / [*Pro]) -6/Deep Caves (discovered 1 exit: [*Pro]) History --------- Turn | Location | Event 3 | -11/Scrapyard | Discovered new exit (range 1) 5 | -11/Scrapyard | Entered Materials 56 | -10/Materials | Identified exit to Mines 96 | -10/Materials | Central database locked down 127 | -10/Materials | Entered Mines 168 | -10/Mines | Joined a pair of Derelicts in attacking an 0b10 outpost 254 | -10/Mines | Found a damaged Exp. Sensor Array with a note attached 257 | -10/Mines | Found Prototype Device 317 | -10/Mines | Build established: Mutant 326 | -10/Mines | Learned location of 2 exits from Materials 340 | -10/Mines | Discovered new exit (range 6) 492 | -10/Mines | Discovered new exit (range 5) 527 | -10/Mines | Found the Drone Emporium 533 | -10/Mines | Found Prototype Device 533 | -10/Mines | Identified Thief Drone Bay 535 | -10/Mines | Assembled infested the area 676 | -10/Mines | Met 8R-AWN 743 | -10/Mines | Discovered new exit (range 5) 749 | -10/Mines | Entered Exiles 749 | -10/Exiles | Accompanied by 2 allies 779 | -10/Exiles | Led the pair of lost Derelicts to a safe place 788 | -10/Exiles | Welcomed by 8R-AWN 812 | -10/Exiles | Met EX-HEX 858 | -10/Exiles | Met EX-BIN 877 | -10/Exiles | Aligned with FarCom system 879 | -10/Exiles | Given EX-Vault access code 917 | -10/Exiles | Opened EX-Vault 935 | -10/Exiles | Found XL Autogun Array 968 | -10/Exiles | Warned to stay clear of 0b10 Research branches 1121 | -10/Exiles | Learned about 8R-AWN's background 1293 | -10/Exiles | Found Deploy-a-Sentry 1296 | -10/Exiles | Found Deploy-a-Sentry 1298 | -10/Exiles | Found Deploy-a-Sentry 1305 | -10/Exiles | Found Cloak of Protection 1436 | -10/Exiles | DAS Turret deployed 1438 | -10/Exiles | DAS Turret deployed 1439 | -10/Exiles | DAS Turret deployed 1525 | -10/Exiles | Discovered new exit (range 14) 1611 | -10/Exiles | Attacked by the Exiles 1643 | -10/Exiles | Allies destroyed 8R-AWN 1647 | -10/Exiles | Found Prototype Device 1647 | -10/Exiles | Identified AS-neutralizer No. 17b 1942 | -10/Exiles | Identified Exp. Sensor Array 1986 | -10/Exiles | Found 8R-AWN's Boregun 2207 | -10/Exiles | Stole two prototypes: Cloak of Protection, XL Autogun Array 2207 | -10/Exiles | Entered Mines 2226 | -9/Mines | Discovered new exit (range 3) 2260 | -9/Mines | Entered Materials 2260 | -8/Materials | Evolved 4 slots: Propulsion x1, Utility x1, Weapon x2 2261 | -8/Materials | Identified exit to Factory 2577 | -8/Materials | Entered Factory 2577 | -7/Factory | Evolved 2 slots: Utility x2 2865 | -7/Factory | Build established: Skirmisher 3283 | -7/Factory | Sucked down chute 3283 | -7/Factory | Entered Waste 3298 | -7/Waste | EMP discharged 3298 | -7/Waste | System corruption reached 10% 3305 | -7/Waste | Spotted C-40 Crusher 3316 | -7/Waste | Destroyed C-40 Crusher 3319 | -7/Waste | Spotted C-40 Crusher 3326 | -7/Waste | Destroyed C-40 Crusher 3341 | -7/Waste | Spotted C-40 Crusher 3346 | -7/Waste | Destroyed C-40 Crusher 3363 | -7/Waste | Spotted C-40 Crusher 3368 | -7/Waste | Destroyed C-40 Crusher 3398 | -7/Waste | EMP discharged 3403 | -7/Waste | Spotted C-40 Crusher 3416 | -7/Waste | Crushed by Compactor (0 parts destroyed, 1 dropped) 3418 | -7/Waste | Destroyed C-40 Crusher 3448 | -7/Waste | Discovered new exit (range 10) 3460 | -7/Waste | Identified exit to Factory 3462 | -7/Waste | Entered Factory 3664 | -7/Factory | Identified exit to Storage 3664 | -7/Factory | Identified exit to Lower Caves 3695 | -7/Factory | Discovered new exit (range 7) 3766 | -7/Factory | Build established: Tank 3815 | -7/Factory | Entered Lower Caves 3944 | -7/Lower Caves | Encountered a Warlord checkpoint 4327 | -7/Lower Caves | Learned 4 Factory zone layouts 4376 | -7/Lower Caves | Build established: Skirmisher 4401 | -7/Lower Caves | Discovered new exit (range 15) 4423 | -7/Lower Caves | Identified exit to Lower Caves 4463 | -7/Lower Caves | Entered another Lower Caves area 4831 | -7/Lower Caves | Spotted 1X-I3N(f) 4832 | -7/Lower Caves | Spotted 90-4M9(f) 4832 | -7/Lower Caves | Spotted FK-AM6(f) 4833 | -7/Lower Caves | Encountered a Master Thief 4833 | -7/Lower Caves | Encountered a Master Thief 4833 | -7/Lower Caves | Encountered a Master Thief 4834 | -7/Lower Caves | Spotted I3-I5S(f) 4834 | -7/Lower Caves | Destroyed FK-AM6(f) 4835 | -7/Lower Caves | Encountered a Master Thief 4837 | -7/Lower Caves | XL Autogun Array stolen by Master Thief 4837 | -7/Lower Caves | Cloak of Protection stolen by Master Thief 4837 | -7/Lower Caves | 8R-AWN's Boregun stolen by Master Thief 4853 | -7/Lower Caves | Discovered new exit (range 12) 4869 | -7/Lower Caves | Identified exit to Data Miner 4871 | -7/Lower Caves | Entered Data Miner 4873 | -7/Data Miner | Discovered new exit (range 7) 4894 | -7/Data Miner | Met Data Miner 4953 | -7/Data Miner | Learned location of Section 7 (-2) 4953 | -7/Data Miner | Acquired the access code to Warlord's prototype stash 4966 | -7/Data Miner | Received God Mode back door access code from Data Miner 5022 | -7/Data Miner | Identified exit to Proximity Caves 5023 | -7/Data Miner | Entered Proximity Caves 5639 | -6/Proximity Caves | Discovered new exit (range 20) 6039 | -6/Proximity Caves | Build established: Scavenger-Assassin 6084 | -6/Proximity Caves | Identified exit to Factory 6085 | -6/Proximity Caves | Entered Factory 6085 | -6/Factory | Accompanied by 2 allies 6085 | -6/Factory | Evolved 2 slots: Propulsion x1, Utility x1 6354 | -6/Factory | Discovered new exit (range 20) 6701 | -6/Factory | Identified exit to Factory 6773 | -6/Factory | Build established: Scavenger-Skirmisher 6958 | -6/Factory | Discovered new exit (range 6) 6964 | -6/Factory | Identified exit to Lower Caves 6966 | -6/Factory | Entered Lower Caves 6966 | -6/Lower Caves | Spotted YU-BQJ(f) 6967 | -6/Lower Caves | Antimatter Reactor stolen by Master Thief 6968 | -6/Lower Caves | Encountered a Master Thief 7160 | -6/Lower Caves | Found Prototype Device 7160 | -6/Lower Caves | Identified Heart of Steel 7301 | -6/Lower Caves | Build established: Skirmisher 7314 | -6/Lower Caves | Found Alien Artifact 7314 | -6/Lower Caves | Identified Core Expander 7314 | -6/Lower Caves | Installed Core Expander, added new Propulsion slot 7884 | -6/Lower Caves | Discovered new exit (range 5) 8025 | -6/Lower Caves | Identified exit to Lower Caves 8026 | -6/Lower Caves | Entered another Lower Caves area 8496 | -6/Lower Caves | Discovered new exit (range 12) 8557 | -6/Lower Caves | Identified exit to Zion 8559 | -6/Lower Caves | Entered Zion 8595 | -6/Zion | Received a visual enhancement algorithm 8598 | -6/Zion | Ran a visual enhancement algorithm 8724 | -6/Zion | Discovered new exit (range 10) 8936 | -6/Zion | Learned Factory stockpile data 9185 | -6/Zion | Learned location of Warlord (-4) 9407 | -6/Zion | Learned location of Quarantine (-2) 9426 | -6/Zion | Acquired unknown access codes intercepted by a Zionite 9428 | -6/Zion | Build established: Tank 9586 | -6/Zion | Opened final containment barrier to the Deep Caves 9610 | -6/Zion | Discovered new exit (range 3) 9610 | -6/Zion | Saw the warning signs outside the Deep Caves entrance 9612 | -6/Zion | Identified exit to Deep Caves 9677 | -6/Zion | Given the Hacking Drone Bay 9833 | -6/Zion | Met Imprinter 9860 | -6/Zion | Imprinted 9863 | -6/Zion | Declared Zion's savior 10295 | -6/Zion | Murdered Imprinter 10296 | -6/Zion | Attacked by Zionites 10513 | -6/Zion | Lost 7 parts (1n2u4w) 10514 | -6/Zion | Entered Deep Caves 10776 | -6/Deep Caves | Build established: Mutant 10791 | -6/Deep Caves | Z-Facility disabled 11209 | -6/Deep Caves | Found Prototype Protection 11209 | -6/Deep Caves | Identified Zio. Weapon Casing 11221 | -6/Deep Caves | Found Prototype Protection 11221 | -6/Deep Caves | Identified Zio. Heavy Carapace 11262 | -6/Deep Caves | Found Zio. Weapon Casing 11286 | -6/Deep Caves | Found Zio. Heavy Carapace 11402 | -6/Deep Caves | Build established: Tank 11648 | -6/Deep Caves | Discovered new exit (range 6) 11902 | -6/Deep Caves | Spotted AG-13722 11948 | -6/Deep Caves | Spotted AG-31238 12532 | -6/Deep Caves | Lost 7 parts (1p2n2u2w) 12563 | -6/Deep Caves | Core integrity fell below 50% 12579 | -6/Deep Caves | Core integrity fell below 20% 12585 | -6/Deep Caves | Triggered Deep Caves wall 12585 | -6/Deep Caves | Spotted AS-38573 12585 | -6/Deep Caves | Spotted AS-04793 12585 | -6/Deep Caves | Destroyed by as-69226 with Assembled Heavy Rifle Last Messages --------------- 12309_ Dropped Angular Momentum Engine. 12311_ Extracted 5 energy. 12313_ Acquired Zio. Biocell. 12478_ Activated siege mode. 12480_ AG-13722: "DSI9AT1D G8OHIBQ29FWG 26R186 QD12WHW8W33 TDK1 81FTS" 12482_ Zio. Heavy Carapace destroyed. 12482_ Lgt. Angular Momentum Engine destroyed. 12482_ Zio. Laser-S destroyed. 12492_ Zio. Biocell destroyed. 12495_ Hvy. Treads destroyed. 12501_ Zio. Composite Leg I destroyed. 12559_ Hvy. Plasma Cannon destroyed. 12559_ Imp. Cooling System destroyed. 12569_ Zio. Weapon Casing destroyed. 12569_ Master Tearclaws destroyed. 12575_ Zio. Composite Leg I destroyed. 12575_ Dropped Lrg. Storage Unit. 12576_ Dropped Zio. Weapon Casing. 12577_ Acquired AS-neutralizer No. 17b. 12585_ The wall dematerializes. Map ----- +----------------------------------------------------+ | ??????????????? ???????????????????# #### | | ??????????? ???????????????????# # | | ?????????? ??????????????????### ### | | ?????????"" ????????????????????# ### | | ????????" #???????????????# ## | | ????????" #??????????????# | | ????????" ?????????????# | | ????????# ??????????????# | | ?????????" ??????????????# | | ?????????" ????????####### | | ?????????" ???????## ## | | ?????????" #?###???# | | ????????"" #?# #???### | | ??????### ### ####??## " | | ??"""""A * # #??## "" | | ??"aaaaa g ####??# # " | | ??"aaaa g * ###?# ### | | ??"aaaaaa * * l ## ## | | ??"aaaa a * = #### ### | | ??"aaaaa ##?## ##?# | | ??"aaaaa b = s * * #??###???## | | ???Aaaa a = #?????????# | | ??????" a = * #???????### | | ????????# * g #??????## | | ????????"" * g #??????# | | ?????????" @ #??????# | | ?????????" #??????## # | | ?????????" * ##?????## # | | ????????"" = #????## | | ????????# !=!bl #????# | | ????????" g s #????# | | ????????" = ###### ### | | ????????" ! !!!] | | ????????""" ! !!] ] | | ????????" s ] | | ????????"" ############ | | ????????" #??????????# | | ????????"" ##??????????## | | ????????" # # #????????????## | | ????????" #### ## ## ##?????????????? | | ????????""" ##???# ## ####??????????????? | | ?????????" ?????##?# #?????????????????? | | ?????????####??????????#??????????????????? | | | | | | | | | | | | | | | +----------------------------------------------------+ Best States ------------- Heat Dissipation 64 Energy Generation 21 Energy Capacity 700 Matter Stores 300 Matter Capacity 300 Sight Range 22 Robot Scan Range 16 Terrain Scan Density 10 Cloak Strength 5 EM Shielding 2 Armor Coverage 2400 Resistance: EM 25 Weapon Shielding 100 Evasion (%) 55 Targeting Accuracy 8 Target Analysis 8 Core Analysis 6 Recoil Reduction 5 Kinecelleration 30 Item Schematics ----------------- Exp. Sensor Array | -8/Materials | Scanalyzed Combat Drone Bay | -7/Data Miner | Free Lgt. Regenerative Plating | -7/Data Miner | Free Biomechanical Wings | -7/Data Miner | Free Thermal Defense Suite | -7/Data Miner | Free Imp. Heavy Machine Gun | -7/Data Miner | Free Hvy. Treads | -7/Data Miner | Free Imp. Recalibrator | -7/Data Miner | Free Imp. Remote Datajack | -7/Data Miner | Free Adv. Heat Sink | -7/Data Miner | Free Hyp. Coil Gun | -7/Data Miner | Free Arm. Medium Treads | -7/Data Miner | Free Lgt. Antimatter Reactor | -7/Data Miner | Free HERF Cannon | -7/Data Miner | Free Coil Gun | -6/Zion | Archive Imp. Dynamic Insulation System | -6/Zion | Archive Phase Cannon | -6/Zion | Archive Imp. Shock Absorption System | -6/Zion | Archive Angular Momentum Engine | -6/Zion | Archive Imp. Focal Shield | -6/Zion | Archive Hvy. Gauss Cannon | -6/Zion | Archive Adv. Thermal Shield | -6/Zion | Archive Adv. Melee Analysis Suite | -6/Zion | Archive Imp. Kinecellerator | -6/Zion | Archive Hvy. Plasma Cannon | -6/Zion | Archive Imp. Launcher Guidance Computer | -6/Zion | Archive Imp. Actuator Array | -6/Zion | Archive Imp. KE Penetrator | -6/Zion | Archive Robot Schematics ------------------ B-48 Gladiator | -7/Data Miner | Free H-66 Slayer | -7/Data Miner | Free P-60 Hacker | -7/Data Miner | Free A-15 Conveyor | -7/Data Miner | Free G-50 Soldier | -7/Data Miner | Free M-22 Extractor | -7/Data Miner | Free R-10 Processor | -6/Zion | Archive K-01 Serf | -6/Zion | Archive T-07 Excavator | -6/Zion | Archive Fabricated ------------ Nothing Repaired ---------- Nothing Alien Tech Used ----------------- Core Expander Achievements -------------- None Challenges ------------ None Game ------ Seed ReactionBehemothShell Manual? 0 Play Time 01:44:40 Cumulative 269.6 hours Start 2025.05.11 @ 08:03:52 End 2025.05.11 @ 10:34:27 Sessions 1 Manual Loads 0 Difficulty Rogue Special Mode None Game No. 191 Rogue 191 Adventurer 0 Explorer 0 Win Type - Total 21 Types 17/0/2/2/0/0/0/0/0/0 Lore% 84 Gallery% 71 Achievement% 62 Wizard Run 0 Options --------- Layout 0 ASCII 1 Keyboard 1 Movement Arrows Keybinds 0 Fullscreen 1 Font 18/Terminus Map View 76x50 Zoom Use 0% Tactical HUD 1 Map Filters NONE Filters NONE Steam 1 RUN: fde5ac8a-0ba1-4d74-9003-c924b2eb09fd